bitfinex/quotes_ETHUSD_20230404
["timestamp","ask_amount","ask_price","bid_price","bid_amount"]
[1680639663484,3.77720964,1869.2,1868.8,0.91596349]
[1680639663683,3.78620964,1869.2,1868.8,0.91596349]
[1680639663926,3.78620964,1869.2,1868.8,2.02722874]
[1680639664131,3.78620964,1869.2,1868.9,0.20272287]
[1680639665419,3.78620964,1869.2,1868.8,0.38085349]
[1680639665785,3.78020964,1869.2,1868.8,0.38085349]
[1680639665990,3.77720964,1869.2,1868.8,0.38085349]
[1680639666533,4.04469964,1869.2,1868.7,6.21718485]
[1680639666682,4.04469964,1869.2,1868.7,6.21518485]
[1680639666884,4.04469964,1869.2,1868.7,5.92576525]
[1680639667145,4.04469964,1869.2,1868.7,4.8145]
[1680639667146,0.646,1869.0,1868.7,4.8145]
[1680639667301,0.646,1869.0,1868.7,4.8165]
[1680639667638,0.646,1869.0,1868.7,5.92776525]
[1680639668837,3.41202218,1869.0,1868.7,0.002]
[1680639669154,0.646,1869.0,1868.6,1.91398525]
[1680639669335,0.646,1869.0,1868.7,1.11126525]
[1680639669541,0.646,1869.0,1868.8,1.42290534]
[1680639670460,0.646,1869.0,1868.8,1.69045534]
[1680639670976,0.78920964,1869.2,1868.8,1.69045534]
[1680639671112,0.77720964,1869.2,1868.9,0.16904553]
[1680639671309,0.77471685,1869.2,1868.8,1.69245534]
[1680639671515,0.77471685,1869.2,1868.8,0.26754]
[1680639671925,0.77471685,1869.2,1868.7,1.67425485]
[1680639672143,0.13271685,1869.2,1868.8,0.26754]
[1680639672463,0.13271685,1869.2,1868.8,0.46171948]
[1680639673162,0.13271685,1869.2,1868.8,0.46371948]
[1680639673347,0.13271685,1869.2,1868.8,0.19617948]
[1680639673544,0.13271685,1869.2,1868.8,0.19417948]
[1680639673730,0.13271685,1869.2,1868.8,0.46172948]
[1680639674115,0.13271685,1869.2,1868.8,0.19417948]
[1680639678165,0.13271685,1869.2,1868.7,1.40668485]
[1680639678367,3.16622903,1869.2,1868.7,0.006]
[1680639678551,0.64,1868.9,1868.6,1.11726525]
[1680639678753,0.64,1868.7,1868.6,0.006]
[1680639679395,0.71,1868.8,1868.6,0.002]
[1680639679694,0.71,1868.8,1868.5,0.006]
[1680639682249,0.064,1868.8,1868.5,0.006]
[1680639682439,0.064,1868.8,1868.4,1.47886525]
[1680639683095,0.064,1868.8,1868.4,1.48486525]
[1680639683394,0.064,1868.8,1868.4,1.21726525]
[1680639683598,0.064,1868.8,1868.4,1.48486525]
[1680639684688,0.064,1868.8,1868.5,1.50579582]
[1680639684851,0.064,1868.8,1868.5,1.51179582]
[1680639686393,1.139,1868.7,1868.5,1.51179582]
[1680639689757,1.139,1868.7,1868.5,1.77938582]
[1680639691273,1.139,1868.7,1868.5,1.51179582]
[1680639691456,1.139,1868.7,1868.5,1.77938582]
[1680639692199,3.97902218,1868.8,1868.5,1.51179582]
[1680639692397,0.23,1868.7,1868.5,1.51179582]
[1680639692734,1.21,1868.8,1868.5,1.51179582]
[1680639698138,3.97602218,1868.8,1868.5,1.51179582]
[1680639698342,0.23,1868.7,1868.5,1.51179582]
[1680639699512,0.23,1868.7,1868.5,1.77938582]
[1680639700541,0.23,1868.7,1868.5,1.51179582]
[1680639700843,0.23,1868.7,1868.5,1.77938582]
[1680639701336,0.23,1868.7,1868.5,1.51179582]
[1680639702992,0.009,1868.9,1868.5,2.07445093]
[1680639703191,0.13271685,1869.2,1868.6,5.01428743]
[1680639703431,40.7531,1869.3,1869.2,0.0032092]
[1680639703432,29.933,1869.3,1869.2,0.0032092]
[1680639703613,0.003,1869.3,1869.2,0.0032092]
[1680639703820,0.26747,1869.3,1869.2,0.0032092]
[1680639705690,0.88266,1869.3,1869.2,0.0032092]
[1680639705893,1.11266,1869.3,1869.2,0.0032092]
[1680639706431,5.92736,1869.3,1869.2,0.0032092]
[1680639706638,8.93036,1869.3,1869.2,0.0032092]
[1680639707094,12.84238218,1869.3,1869.2,0.0032092]
[1680639708190,12.03996218,1869.3,1869.2,0.0032092]
[1680639708439,10.89171483,1869.3,1869.2,0.0032092]
[1680639708634,3.003,1869.3,1869.2,0.0032092]
[1680639708833,3.26747,1869.3,1869.2,0.0032092]
[1680639709212,0.26747,1869.3,1869.2,0.0032092]
[1680639710933,0.49747,1869.3,1869.2,0.0032092]
[1680639711232,0.44714,1869.3,1869.2,0.0032092]
[1680639711634,0.23,1869.3,1869.2,0.0032092]
[1680639712235,1.139,1869.4,1869.2,0.0032092]
[1680639712433,0.13951546,1869.5,1869.2,0.00036408]
[1680639712637,0.13651546,1869.5,1869.2,0.26785408]
[1680639712821,0.13651546,1869.5,1869.2,0.88312049]
[1680639713225,0.1,1869.7,1869.2,0.88312049]
[1680639713558,2.86602218,1869.7,1869.3,1.4989848]
[1680639713856,2.86602218,1869.7,1869.3,1.7664448]
[1680639714395,0.1,1869.7,1869.3,2.53960233]
[1680639715143,3.1,1869.7,1869.3,2.53960233]
[1680639715352,3.1,1869.7,1869.3,1.73719233]
[1680639715649,0.23050583,1869.7,1869.3,1.73719233]
[1680639716948,0.49792583,1869.7,1869.3,1.73719233]
[1680639717245,0.49792583,1869.7,1869.3,1.4989848]
[1680639717931,4.40694801,1869.7,1869.3,1.4989848]
[1680639718135,0.23,1869.6,1869.3,1.4989848]
[1680639718906,0.49743,1869.6,1869.3,1.4989848]
[1680639719216,0.23,1869.6,1869.4,0.449]
[1680639724544,3.26345218,1869.6,1869.4,0.449]
[1680639724945,2.99602218,1869.6,1869.4,0.449]
[1680639725131,3.26345218,1869.6,1869.4,0.449]
[1680639725617,2.99602218,1869.6,1869.4,0.449]
[1680639726791,3.26345218,1869.6,1869.4,0.449]
[1680639726931,2.99602218,1869.6,1869.4,0.449]
[1680639727267,3.26345218,1869.6,1869.4,0.449]
[1680639728323,2.99602218,1869.6,1869.4,0.449]
[1680639729070,12.76402218,1869.5,1869.4,0.449]
[1680639729355,13.79937218,1869.5,1869.4,0.449]
[1680639730632,16.79937218,1869.5,1869.4,0.449]
[1680639730834,16.79937218,1869.5,1869.2,0.00036408]
[1680639731041,6.781,1869.3,1869.2,0.00036408]
[1680639731246,9.81749218,1869.3,1869.2,0.00036408]
[1680639731445,10.04749218,1869.3,1869.2,0.00036408]
[1680639731647,24.95879218,1869.3,1869.2,0.00036408]
[1680639731936,24.69132218,1869.3,1869.2,0.00036408]
[1680639732751,24.95879218,1869.3,1869.2,0.00036408]
[1680639733966,19.05632218,1869.3,1869.2,0.00036408]
[1680639734549,14.9143,1869.3,1869.2,0.00036408]
[1680639735153,0.003,1869.3,1869.2,0.00036408]
[1680639735354,1.137,1869.4,1869.2,0.00036408]
[1680639735557,1.137,1869.4,1869.2,0.43436408]
[1680639735882,1.13474561,1869.4,1869.2,0.43436408]
[1680639739315,1.40220561,1869.4,1869.2,0.43436408]
[1680639739802,1.13474561,1869.4,1869.2,0.43436408]
[1680639740113,1.40220561,1869.4,1869.2,0.43436408]
[1680639742205,0.26746,1869.4,1869.2,0.43436408]
[1680639744519,9.16626,1869.5,1869.3,1.33477132]
[1680639744722,4.41345,1869.5,1869.3,1.33477132]
[1680639744899,4.41045,1869.5,1869.3,1.33477132]
[1680639747226,3.91345,1869.5,1869.3,1.33477132]
[1680639749220,1.29,1869.4,1869.3,1.33477132]
[1680639749421,1.78746,1869.4,1869.3,1.33477132]
[1680639750216,1.52,1869.4,1869.3,1.33477132]
[1680639750593,4.55348218,1869.4,1869.3,1.33477132]
[1680639751211,4.28602218,1869.4,1869.3,1.33477132]
[1680639752548,4.28602218,1869.4,1869.2,0.40936408]
[1680639752836,0.873,1869.3,1869.2,0.40936408]
[1680639752988,3.63902218,1869.3,1869.2,0.40936408]
[1680639753415,3.63902218,1869.3,1869.2,1.61361123]
[1680639765640,2.99602218,1869.3,1869.2,1.61361123]
[1680639767950,0.003,1869.4,1869.2,1.47210123]
[1680639768152,3.643,1869.5,1869.2,1.62661123]
[1680639768352,6.40902218,1869.5,1869.2,1.62661123]
[1680639768522,6.41202218,1869.5,1869.2,1.62661123]
[1680639769067,6.68847218,1869.5,1869.2,1.62661123]
[1680639769366,0.23,1869.4,1869.2,1.62661123]
[1680639772063,1.14347,1869.4,1869.2,1.20461123]
[1680639772952,2.76602218,1869.3,1869.2,1.20461123]
[1680639773155,2.99602218,1869.3,1869.2,1.20461123]
[1680639775932,2.99602218,1869.3,1869.2,1.10461123]
[1680639776445,2.99602218,1869.3,1868.9,0.29539726]
[1680639776651,0.23,1869.2,1868.9,0.28939726]
[1680639776861,0.23,1869.2,1868.9,0.02186726]
[1680639777467,0.23,1869.2,1869.0,1.20321618]
[1680639778057,0.23,1869.2,1869.0,1.63721618]
[1680639779491,0.23,1869.2,1869.0,1.90473618]
[1680639779645,0.23,1869.2,1869.0,1.63721618]
[1680639788806,0.08,1869.2,1869.0,1.63721618]
[1680639789018,3.67950218,1869.3,1869.0,1.63721618]
[1680639789314,3.41202218,1869.3,1869.0,1.63721618]
[1680639790950,0.23,1869.2,1869.0,1.63721618]
[1680639794090,2.99602218,1869.2,1869.0,1.63721618]
[1680639798990,2.76602218,1869.1,1869.0,1.63721618]
[1680639799193,13.14002218,1869.1,1869.0,1.63721618]
[1680639799411,13.14302218,1869.1,1869.0,1.63721618]
[1680639799708,13.14302218,1869.1,1869.0,0.434]
[1680639800466,13.41052218,1869.1,1869.0,1.76412821]
[1680639803261,13.41952218,1869.1,1869.0,1.76412821]
[1680639804102,13.41052218,1869.1,1869.0,1.76412821]
[1680639807713,13.94553218,1869.1,1869.0,1.33012821]
[1680639810057,13.95453218,1869.1,1869.0,1.33012821]
[1680639810248,13.94553218,1869.1,1869.0,1.33012821]
[1680639816828,12.76452218,1869.1,1869.0,1.33012821]
[1680639817506,7.13852218,1869.1,1869.0,1.33012821]
[1680639817847,6.86202218,1869.1,1869.0,1.33012821]
[1680639818050,7.12952218,1869.1,1869.0,1.33012821]
[1680639818254,3.41502218,1869.1,1869.0,1.33012821]
[1680639818418,3.41202218,1869.1,1869.0,1.33012821]
[1680639818748,0.646,1869.1,1869.0,1.33012821]
[1680639818911,0.646,1869.1,1869.0,1.76612821]
[1680639819953,0.876,1869.1,1869.0,1.76612821]
[1680639820409,1.1435,1869.1,1869.0,1.76612821]
[1680639822058,0.4975,1869.1,1869.0,1.76612821]
[1680639829443,0.23,1869.1,1869.0,1.76612821]
[1680639830173,0.4975,1869.1,1869.0,1.76612821]
[1680639833201,0.23,1869.1,1869.0,2.03364821]
[1680639833404,0.23,1869.1,1869.0,2.21026103]
[1680639833405,0.22765287,1869.1,1869.0,2.21026103]
[1680639833610,0.22765287,1869.1,1869.0,1.76612821]
[1680639833765,0.646,1869.3,1869.0,1.76612821]
[1680639833969,6.75785489,1869.4,1869.0,1.76612821]
[1680639834223,9.51487707,1869.4,1869.0,1.76612821]
[1680639834422,9.52387707,1869.4,1869.0,1.76612821]
[1680639835385,0.23,1869.3,1869.0,1.76612821]
[1680639836620,0.876,1869.3,1869.0,1.76612821]
[1680639836825,3.876,1869.3,1869.0,1.76612821]
[1680639839937,6.64202218,1869.3,1869.0,1.76612821]
[1680639840087,2.76602218,1869.2,1869.0,1.76612821]
[1680639840293,0.23,1869.1,1869.0,1.76612821]
[1680639847147,2.99602218,1869.1,1869.0,1.76612821]
[1680639847864,11.84802218,1869.1,1869.0,1.76612821]
[1680639848064,11.85102218,1869.1,1869.0,1.76612821]
[1680639849350,11.85102218,1869.1,1869.0,2.03364821]
[1680639849540,11.86002218,1869.1,1869.0,1.76612821]
[1680639849869,11.85102218,1869.1,1869.0,1.76612821]
[1680639850077,11.85102218,1869.1,1869.0,2.03364821]
[1680639850645,11.85102218,1869.1,1869.0,1.76612821]
[1680639851324,11.85102218,1869.1,1869.0,2.03364821]
[1680639852574,0.003,1869.1,1869.0,2.13268821]
[1680639852775,0.012,1869.4,1869.0,2.13268821]
[1680639852986,3.0,1869.5,1869.0,6.84878821]
[1680639853273,3.0,1869.4,1869.2,0.80247]
[1680639853434,3.009,1869.4,1869.2,0.80247]
[1680639854066,3.0,1869.4,1869.2,0.80247]
[1680639855326,2.99787,1869.4,1869.2,0.80247]
[1680639855532,0.003,1869.5,1869.3,0.10210956]
[1680639855744,0.23050583,1869.7,1869.4,0.26746]
[1680639855974,2.99652801,1869.7,1869.4,0.26746]
[1680639856636,2.99652801,1869.7,1869.4,0.80239]
[1680639856831,0.23,1869.6,1869.4,0.80239]
[1680639857246,0.23,1869.6,1869.4,0.89283996]
[1680639857445,0.23,1869.6,1869.5,1.07928806]
[1680639857865,0.23,1869.6,1869.5,1.34673806]
[1680639858945,0.23,1869.6,1869.5,1.88163806]
[1680639859875,0.1,1869.7,1869.5,1.88163806]
[1680639860083,0.1,1869.7,1869.5,2.07884686]
[1680639860289,0.1,1869.7,1869.5,1.54394686]
[1680639861969,0.1,1869.7,1869.5,1.27649686]
[1680639862799,0.1,1869.7,1869.5,1.54393686]
[1680639867007,0.1,1869.7,1869.5,1.27649686]
[1680639867230,2.76602218,1869.6,1869.5,1.07928806]
[1680639867357,2.99602218,1869.6,1869.5,1.07928806]
[1680639867562,10.19045218,1869.6,1869.5,1.07928806]
[1680639867790,13.94532218,1869.6,1869.5,1.07928806]
[1680639868530,13.94532218,1869.6,1869.4,0.006]
[1680639868531,13.94532218,1869.6,1869.1,0.006]
[1680639868713,9.728,1869.5,1869.0,0.26752]
[1680639868919,2.76602218,1869.4,1868.9,0.27352]
[1680639869068,0.23,1869.3,1868.9,0.27352]
[1680639869568,0.23,1869.3,1869.0,1.28112972]
[1680639870178,3.64202218,1869.3,1869.0,1.40812972]
[1680639870400,2.76602218,1869.2,1869.0,1.40812972]
[1680639871364,2.99602218,1869.1,1869.0,1.67564972]
[1680639871998,2.99602218,1869.1,1869.0,1.40812972]
[1680639872513,2.99602218,1869.1,1869.0,1.67564972]
[1680639873717,2.99602218,1869.1,1869.0,1.40812972]
[1680639874366,2.99602218,1869.1,1869.0,1.28112972]
[1680639874565,2.99602218,1869.1,1869.0,1.40312972]
[1680639879215,2.99602218,1869.1,1869.0,1.67064972]
[1680639879583,2.99602218,1869.1,1869.0,1.40312972]
[1680639880711,2.99602218,1869.1,1869.0,1.67064972]
[1680639882433,2.99602218,1869.1,1869.0,1.40312972]
[1680639883020,2.99602218,1869.1,1869.0,1.67064972]
[1680639883173,0.23,1869.1,1869.0,1.67064972]
[1680639883562,0.23,1869.1,1869.0,2.20568972]
[1680639883764,0.646,1869.3,1869.0,2.20568972]
[1680639884986,0.23,1869.2,1869.0,2.20568972]
[1680639887219,0.23,1869.2,1869.0,1.67064972]
[1680639889517,0.23,1869.2,1869.0,1.40312972]
[1680639890126,3.08362218,1869.2,1869.0,1.40312972]
[1680639890335,12.26202218,1869.1,1869.0,1.40312972]
[1680639890632,12.49502218,1869.1,1869.0,1.40312972]
[1680639891493,12.19802218,1869.1,1869.0,1.40312972]
[1680639891822,12.19502218,1869.1,1869.0,1.40312972]
[1680639898313,12.20402218,1869.1,1869.0,1.40312972]
[1680639899122,12.19502218,1869.1,1869.0,1.40312972]
[1680639902121,12.83902218,1869.1,1869.0,1.40312972]
[1680639904233,15.83902218,1869.1,1869.0,1.40312972]
[1680639904852,16.74952218,1869.1,1869.0,1.40312972]
[1680639905065,16.74952218,1869.1,1869.0,1.28112972]
[1680639905661,16.74952218,1869.1,1868.6,0.008]
[1680639905859,0.646,1868.7,1868.5,5.14608]
[1680639906147,2.99602218,1868.6,1868.5,0.27358]
[1680639906367,2.99602218,1868.6,1868.5,0.27158]
[1680639906554,2.99602218,1868.6,1868.5,0.26758]
[1680639909373,11.84802218,1868.6,1868.4,0.106]
[1680639909522,11.84802218,1868.6,1868.4,0.1]
[1680639909523,6.736,1868.5,1868.4,0.1]
[1680639909866,15.37002218,1868.5,1868.4,0.1]
[1680639910263,15.64661218,1868.5,1868.4,0.163]
[1680639911992,15.64661218,1868.5,1868.4,1.23916312]
[1680639912192,16.29161218,1868.5,1868.4,1.23916312]
[1680639912656,16.29161218,1868.5,1868.4,1.17616312]
[1680639913703,16.82679218,1868.5,1868.4,1.17616312]
[1680639921380,16.82679218,1868.5,1868.4,0.1]
[1680639925048,17.46879218,1868.5,1868.4,0.1]
[1680639925396,0.5,1868.4,1868.3,0.1]
[1680639925602,16.93926218,1868.4,1868.3,0.1]
[1680639925828,22.61834218,1868.4,1868.3,0.1]
[1680639926744,0.1,1868.3,1868.1,0.1]
[1680639927046,18.45602137,1868.2,1868.1,0.1]
[1680639927246,18.45902137,1868.2,1868.1,0.1]
[1680639927779,21.45902137,1868.2,1868.1,0.1]
[1680639928943,10.50368499,1868.1,1868.0,0.04]
[1680639929143,19.00965717,1868.1,1868.0,0.04]
[1680639929302,19.23965717,1868.1,1868.0,0.04]
[1680639933054,19.24865717,1868.1,1868.0,0.04]
[1680639933742,19.23965717,1868.1,1868.0,0.04]
[1680639934338,19.78670459,1868.1,1868.0,0.04]
[1680639944172,19.14070459,1868.1,1868.0,0.04]
[1680639945890,19.14970459,1868.1,1868.0,0.04]
[1680639946294,19.14070459,1868.1,1868.0,0.04]
[1680639946510,16.6140196,1868.1,1868.0,0.04]
[1680639946799,10.4437196,1868.1,1868.0,0.04]
[1680639947994,10.3360196,1868.1,1868.0,0.04]
[1680639949446,10.5660196,1868.1,1868.0,0.04]
[1680639952149,11.2120196,1868.1,1867.9,0.0416]
[1680639952400,6.79901218,1868.0,1867.9,0.0416]
[1680639952569,6.80201218,1868.0,1867.9,0.0416]
[1680639960030,10.01901218,1868.0,1867.9,0.0416]
[1680639960190,16.94401218,1868.0,1867.9,0.0416]
[1680639963084,16.94001218,1868.0,1867.9,0.0416]
[1680639963300,9.352,1867.9,1867.8,0.1]
[1680639963436,5.635,1867.6,1867.3,0.1]
[1680639963636,14.88575218,1867.5,1867.3,0.1]
[1680639963840,0.23,1867.4,1867.3,0.1]
[1680639964146,6.21302218,1867.4,1867.3,0.1]
[1680639964340,11.85102218,1867.4,1867.3,0.1]
[1680639964556,11.85102218,1867.4,1867.3,1.09335903]
[1680639964979,12.11877218,1867.4,1867.3,1.09335903]
[1680639965351,11.85102218,1867.4,1867.3,1.09335903]
[1680639968170,12.37944534,1867.4,1867.3,1.09335903]
[1680639973560,6.74444534,1867.4,1867.3,1.09335903]
[1680639974592,6.75344534,1867.4,1867.3,1.09335903]
[1680639975099,6.75044534,1867.4,1867.3,1.09335903]
[1680639975299,12.37944534,1867.4,1867.3,1.09335903]
[1680639977301,12.38544534,1867.4,1867.3,1.09335903]
[1680639977607,6.75344534,1867.4,1867.3,1.09335903]
[1680639977809,6.74444534,1867.4,1867.3,1.09335903]
[1680639979579,12.37944534,1867.4,1867.3,1.09335903]
[1680639981169,6.74444534,1867.4,1867.3,1.09335903]
[1680639982524,6.75344534,1867.4,1867.3,1.09335903]
[1680639982942,6.74444534,1867.4,1867.3,1.09335903]
[1680639983248,12.37944534,1867.4,1867.3,1.09335903]
[1680639983968,6.74444534,1867.4,1867.3,1.09335903]
[1680639985026,6.8750626,1867.4,1867.3,1.09335903]
[1680639985228,6.8840626,1867.4,1867.3,1.09335903]
[1680639985532,6.8750626,1867.4,1867.3,1.09335903]
[1680639987174,6.34663944,1867.4,1867.3,1.09335903]
[1680639989071,6.34963944,1867.4,1867.3,1.09335903]
[1680639989272,6.34663944,1867.4,1867.3,1.09335903]
[1680639990765,6.35563944,1867.4,1867.3,1.09335903]
[1680639991382,6.34663944,1867.4,1867.3,1.09335903]
[1680639993511,14.07488944,1867.4,1867.3,1.09335903]
[1680639993662,17.07488944,1867.4,1867.3,1.09335903]
[1680639997299,19.36696345,1867.4,1867.3,1.09335903]
[1680639997500,19.36696345,1867.4,1867.3,0.1]
[1680639997697,34.92386345,1867.4,1867.3,0.1]
[1680640003298,32.50928944,1867.4,1867.3,0.1]
[1680640003495,14.75163944,1867.4,1867.3,0.1]
[1680640004898,14.98163944,1867.4,1867.3,0.1]
[1680640005854,5.89963944,1867.4,1867.3,0.1]
[1680640006744,6.16738944,1867.4,1867.3,0.1]
[1680640006901,5.89963944,1867.4,1867.3,0.1]
[1680640007543,6.12963944,1867.4,1867.3,0.1]
[1680640008508,6.39738944,1867.4,1867.3,0.1]
[1680640008850,9.61438944,1867.4,1867.3,0.1]
[1680640009731,9.34663944,1867.4,1867.3,0.1]
[1680640010049,9.61438944,1867.4,1867.3,0.1]
[1680640010255,9.34663944,1867.4,1867.3,0.1]
[1680640011247,9.61438944,1867.4,1867.3,0.1]
[1680640012116,9.99263944,1867.4,1867.3,0.1]
[1680640017411,9.99263944,1867.4,1867.3,1.04562005]
[1680640019148,9.98897486,1867.4,1867.3,1.04562005]
[1680640020547,6.34297486,1867.4,1867.3,1.04562005]
[1680640022223,0.13361726,1867.4,1867.3,1.16018206]
[1680640022433,0.13061726,1867.4,1867.3,1.16018206]
[1680640023802,0.36061726,1867.4,1867.3,1.16018206]
[1680640031376,0.36061726,1867.4,1867.3,1.04562005]
[1680640031575,0.62836726,1867.4,1867.3,1.04562005]
[1680640032608,3.39438944,1867.4,1867.3,1.04562005]
[1680640032963,3.12663944,1867.4,1867.3,1.04562005]
[1680640034442,3.39438944,1867.4,1867.3,1.04562005]
[1680640034717,3.12663944,1867.4,1867.3,1.04562005]
[1680640035621,3.39438944,1867.4,1867.3,1.04562005]
[1680640035787,3.12663944,1867.4,1867.3,1.04562005]
[1680640036673,6.34363944,1867.4,1867.3,1.04562005]
[1680640036883,6.34663944,1867.4,1867.3,1.04562005]
[1680640038253,6.61438944,1867.4,1867.3,1.04562005]
[1680640038667,6.34663944,1867.4,1867.3,1.04562005]
[1680640040767,6.62338944,1867.4,1867.3,1.04562005]
[1680640040969,6.35563944,1867.4,1867.3,1.04562005]
[1680640041465,6.34663944,1867.4,1867.3,1.04562005]
[1680640042082,6.99263944,1867.4,1867.3,1.04562005]
[1680640042882,6.99046912,1867.4,1867.3,1.04562005]
[1680640043074,6.99946912,1867.4,1867.3,1.04562005]
[1680640043581,6.99046912,1867.4,1867.3,1.04562005]
[1680640046654,6.99946912,1867.4,1867.3,1.04562005]
[1680640047183,6.99046912,1867.4,1867.3,1.04562005]
[1680640048054,3.12746912,1867.4,1867.3,1.04562005]
[1680640048245,0.35844694,1867.4,1867.3,1.16018206]
[1680640050696,0.12844694,1867.4,1867.3,1.96347206]
[1680640050896,3.0,1867.7,1867.3,1.96347206]
[1680640051190,3.0,1867.7,1867.4,0.46408721]
[1680640051391,3.012,1867.8,1867.4,0.46408721]
[1680640051699,5.77502218,1867.8,1867.4,0.46408721]
[1680640051882,0.23,1867.7,1867.4,0.46408721]
[1680640053514,0.23,1867.7,1867.4,0.80324]
[1680640053967,0.23,1867.8,1867.4,0.80324]
[1680640054973,0.23,1867.8,1867.4,0.26774]
[1680640055507,2.99602218,1867.8,1867.3,0.50419799]
[1680640059427,2.99602218,1867.8,1867.4,0.89368444]
[1680640059583,2.99602218,1867.8,1867.4,1.30122268]
[1680640062600,2.99602218,1867.8,1867.4,1.03347268]
[1680640064815,3.26371218,1867.8,1867.4,1.03347268]
[1680640065016,2.99602218,1867.8,1867.4,1.03347268]
[1680640065726,2.9939204,1867.8,1867.4,1.03347268]
[1680640069363,2.9939204,1867.8,1867.4,0.89368444]
[1680640069537,2.76602218,1867.7,1867.4,0.89368444]
[1680640069744,0.23,1867.6,1867.4,0.89368444]
[1680640072924,0.23,1867.6,1867.4,0.84368444]
[1680640075467,3.90974218,1867.6,1867.4,0.84368444]
[1680640075638,3.64202218,1867.6,1867.4,0.84368444]
[1680640078386,2.76602218,1867.5,1867.4,0.84368444]
[1680640078584,2.99602218,1867.5,1867.4,0.84368444]
[1680640082451,12.49102218,1867.5,1867.4,0.84368444]
[1680640082650,12.49402218,1867.5,1867.4,0.84368444]
[1680640084996,12.50302218,1867.5,1867.4,0.84368444]
[1680640086864,12.49402218,1867.5,1867.4,0.84368444]
[1680640087067,12.50302218,1867.5,1867.4,0.84368444]
[1680640087703,13.04497844,1867.5,1867.4,0.84368444]
[1680640089625,16.95870844,1867.5,1867.4,0.84368444]
[1680640089822,16.94970844,1867.5,1867.4,0.84368444]
[1680640091010,16.95870844,1867.5,1867.4,0.84368444]
[1680640094441,18.13717844,1867.5,1867.4,0.84368444]
[1680640094602,21.05888273,1867.5,1867.4,0.84368444]
[1680640094803,21.62011017,1867.5,1867.4,0.84368444]
[1680640095490,23.01462338,1867.5,1867.3,0.1]
[1680640095686,16.78002218,1867.4,1867.3,0.1]
[1680640096005,19.95827218,1867.4,1867.3,0.1]
[1680640102266,19.94927218,1867.4,1867.2,0.13]
[1680640102459,16.41339089,1867.3,1867.2,0.13]
[1680640102759,20.44968089,1867.3,1867.2,0.13]
[1680640104178,20.45868089,1867.3,1867.2,0.13]
[1680640104791,20.44968089,1867.3,1867.2,0.13]
[1680640108440,19.15668089,1867.3,1867.2,0.13]
[1680640116409,19.15668089,1867.3,1867.2,0.13]
[1680640116797,18.51168089,1867.3,1867.2,0.13]
[1680640118473,16.17678218,1867.3,1867.2,0.13]
[1680640118669,9.89878218,1867.3,1867.2,0.13]
[1680640119177,0.070231,1867.0,1866.9,0.02189066]
[1680640119383,2.83625318,1867.0,1866.9,0.02189066]
[1680640119585,5.83625318,1867.0,1866.9,0.02189066]
[1680640119783,5.83925318,1867.0,1866.9,0.02189066]
[1680640119995,6.06925318,1867.0,1866.9,0.02189066]
[1680640120599,3.073231,1867.0,1866.9,0.80477584]
[1680640120812,0.070231,1867.0,1866.9,0.89525342]
[1680640121995,0.300231,1867.0,1866.9,0.89525342]
[1680640124339,0.070231,1867.0,1866.9,1.16307342]
[1680640124624,0.070231,1867.0,1866.9,0.89525342]
[1680640124784,0.070231,1867.0,1866.9,1.16307342]
[1680640125186,0.070231,1867.0,1866.9,0.89525342]
[1680640125487,0.070231,1867.0,1866.9,1.16307342]
[1680640125921,0.070231,1867.0,1866.9,1.16707342]
[1680640126111,0.070231,1867.0,1866.9,0.89925342]
[1680640126312,0.070231,1867.0,1866.9,0.89725342]
[1680640128535,0.070231,1867.0,1866.9,0.89925342]
[1680640130128,0.070231,1867.0,1866.9,1.16707342]
[1680640130439,0.070231,1867.0,1866.9,1.16307342]
[1680640130586,0.070231,1867.0,1866.9,1.16907342]
[1680640134695,0.070231,1867.0,1866.9,0.90125342]
[1680640136943,0.070231,1867.0,1866.9,0.89925342]
[1680640137107,0.070231,1867.0,1866.9,0.90125342]
[1680640137947,0.070231,1867.0,1866.9,0.89925342]
[1680640139201,0.070231,1867.0,1866.9,0.90125342]
[1680640139446,0.300231,1867.0,1866.9,0.78888518]
[1680640143544,3.06625318,1867.0,1866.9,0.78888518]
[1680640148233,3.06625318,1867.0,1866.9,0.78288518]
[1680640148865,3.06625318,1867.0,1866.9,0.78888518]
[1680640150872,0.29678569,1867.0,1866.9,0.8717737]
[1680640163704,0.29678569,1867.0,1866.9,0.78288518]
[1680640174921,0.29421172,1867.0,1866.9,0.78288518]
[1680640197675,0.29196519,1867.0,1866.9,0.78288518]
[1680640200747,0.55976519,1867.0,1866.9,0.78288518]
[1680640201365,4.61578737,1867.0,1866.9,0.78288518]
[1680640201562,4.34798737,1867.0,1866.9,0.78288518]
[1680640201945,4.61578737,1867.0,1866.9,0.78288518]
[1680640202540,7.56498737,1867.0,1866.9,0.78288518]
[1680640202738,7.56798737,1867.0,1866.9,0.78288518]
[1680640206459,8.10406641,1867.0,1866.9,0.78288518]
[1680640212150,8.10706641,1867.0,1866.9,0.78288518]
[1680640212354,8.11306641,1867.0,1866.9,0.78288518]
[1680640212575,8.10406641,1867.0,1866.9,0.78288518]
[1680640215704,7.45806641,1867.0,1866.9,0.78288518]
[1680640216605,7.46106641,1867.0,1866.9,0.78288518]
[1680640216761,7.46706641,1867.0,1866.9,0.78288518]
[1680640216961,7.45806641,1867.0,1866.9,0.78288518]
[1680640218556,13.09306641,1867.0,1866.9,0.78288518]
[1680640218769,16.36086641,1867.0,1866.9,0.78288518]
[1680640220105,16.50594857,1867.0,1866.9,0.78288518]
[1680640222122,11.51594857,1867.0,1866.9,0.78288518]
[1680640222325,11.24814857,1867.0,1866.8,0.1]
[1680640222665,3.04118572,1866.9,1866.8,0.1]
[1680640222866,3.03882519,1866.9,1866.8,0.1]
[1680640224172,3.03882519,1866.9,1866.8,0.81732178]
[1680640224348,3.03882519,1866.9,1866.8,0.90905396]
[1680640226073,0.27516354,1866.9,1866.8,0.90905396]
[1680640232362,0.04516354,1866.9,1866.8,0.90905396]
[1680640232523,0.04516354,1866.9,1866.8,1.17688396]
[1680640232730,0.04516354,1866.9,1866.8,2.35655396]
[1680640233283,0.04516354,1866.9,1866.8,3.77352737]
[1680640233448,0.04516354,1866.9,1866.8,12.7301458]
[1680640234182,0.04516354,1866.9,1866.8,23.87872788]
[1680640234788,0.06196519,1867.0,1866.9,0.5]
[1680640234955,0.06196519,1867.0,1866.9,11.35017672]